{"text_format":"1","workbook":"xlsx","n_sheets":7,"sheets":["KıdemIhbar","Liste","Ibraname","ÇokluHesap","Data","Tavan","Mevzuat"],"not_rendered":{"charts":0,"images":2,"macros":1,"external_links":0,"defined_names":4,"comments":0,"pivot_tables":0},"unopened":[],"bounds":{"document_bytes":16777216,"sheet_cells":100000,"rows_first":2000,"rows_last":500,"rows_between":2000,"halvings":0,"cell_chars":16384,"cell_head_chars":4096},"cells_cut":0,"cells_raw":0,"read":"whole","date_system":"1900"}

{"sheet":"KıdemIhbar","index":0,"n_rows":50,"n_cols":9,"rows_kept":50,"cut":false,"hidden":false,"merged":[[36,7,47,9],[0,2,0,5],[9,7,19,9],[21,7,35,9]]}
[null,null,"Kıdem ve İhbar Tazminatı Hesaplama Formu"]
[]
[null,null,"Hesaplama Parametreleri (sarı ile taralı alanları doldurunuz)"]
[null,null,"Şirketin ünvanı",null,null,null,null,null,20]
[null,null,"İşçinin adı",null,null,null,null,null,24]
[null,null,"İşçinin TC kimlik numarası"]
[null,null,"İşçinin kanuni ikemetgah adresi"]
[null,null,"İşe giriş (sigorta başlangiç) tarihi"]
[null,null,""]
[null,null,"İşten çıkış tarihi",null,null,null,null,"Bu sayfada tek tek yapılan hesaplamalar LİSTE sayfasında otomatik rapor haline gelmektedir."]
[null,null,""]
[null,null,""]
[null,null,""]
[null,null,"En son aylık brüt ücreti",null,null,0]
[null,null,"Yıl içinde verilen prim ve ikramiyelerin aylık ortalaması"]
[null,null,"Yıl içinde verilen yemek, yol vb paraların aylık ortalaması"]
[null,null,"Var ise diğer nakti sosyal yardımlar (BES ödemesi gibi)"]
[null,null,"Kümülatif Gelir Vergisi Matrahı (tazminattan önceki en son)",null,null,0]
[null,null,""]
[null,null,"Giydirilmiş Ücret Toplamı",null,null,0]
[]
[null,null,"Kıdem tazminatı tavanı",null,null,null,null,"Bu sayfada hesaplama yaptırıldığında İbraname otomatik olarak oluşmaktadır."]
[null,null,""]
[null,null,""]
[]
[null,null,"Kıdem Tazminatı"]
[null,null,"Çalıştığı süre (gün)",null,null,0]
[null,null,""]
[null,null,"Brüt kidem tazminatı"]
[null,null,""]
[null,null,"Damga vergisi (-)"]
[null,null,""]
[null,null,"Net Kıdem Tazminatı (TL)"]
[null,null,""]
[null,null,""]
[]
[null,null,"İhbar Tazminatı",null,null,null,null,"Birden fazla kişi için aynı anda hesaplama yaptırmak isterseniz \"ÇokluHesap\" sayfasını kullanabilirsiniz."]
[null,null,"Çalıştığı süre (gün)",null,null,0]
[null,null,""]
[null,null,"İhbar gün sayısı"]
[null,null,""]
[null,null,"Brüt ihbar tazminatı"]
[null,null,""]
[null,null,"Gelir vergisi (-)"]
[null,null,""]
[null,null,"Damga vergisi (-)"]
[null,null,""]
[null,null,"Net İhbar Tazminatı (TL)"]
[null,null,""]
[null,null,"NET Kıdem ve İhbar Tazminatı Toplamı"]

{"sheet":"Liste","index":1,"n_rows":7,"n_cols":18,"rows_kept":7,"cut":false,"hidden":false,"merged":[[5,1,6,1],[1,7,3,11]]}
[]
[null,null,null,null,null,null,null,"KıdemIhbar sayfasında yapılan hesaplamalar burada otomatik liste haline gelmektedir. Elle veri girmeyiniz."]
[null,null,"KIDEM VE İHBAR TAZMİNATLARI LİSTESİ"]
[]
[]
[null,"Sıra No","İşçinin","İşe Giriş","İşten Çıkış Tarihi","Çalıştığı Süre ","Kıdem Ve İhbar Tazminatına Esas ","Kümülatif Vergi ","Kıdem Tazminatı ","Brüt Kıdem ","Kıdem Damga ","Net Kıdem ","İhbar Gün ","Brüt İhbar ","İhbar Gelir ","İhbar Damga ","Net İhbar ","NET Kıdem ve İhbar"]
[null,null,"Adı","Tarihi","Tarihi","(Gün)","Ücreti","Matrahı","Tavanı","tazminatı","Vergisi","Tazminatı","Sayısı","tazminatı","Vergisi","Vergisi","Tazminatı","Toplamı"]

{"sheet":"Ibraname","index":2,"n_rows":15,"n_cols":14,"rows_kept":15,"cut":false,"hidden":false,"merged":[[1,13,3,17],[3,2,3,10],[13,4,13,10],[5,2,5,10],[10,4,10,10],[11,4,11,10],[12,4,12,10]]}
[]
[null,null,null,null,null,null,null,null,null,null,null,null,null,"KıdemIhbar sayfasında yapılan hesaplamalar burada otomatik IBRANAME haline gelmektedir. Elle veri girmeyiniz."]
[]
[null,null,"İBRANAME"]
[]
[null,null,"xxx'de 01.01.2020 ile 01 tarihleri arasında çalıştığım bütün süreye ait; haketmiş olduğum tüm aylık ücretlerimle, prim, ikramiye, fazla çalışma, hafta tatili, genel tatil, yolluk, kıdem ve ihbar tazminatlarımı, kullanmadığım yıllık izin ücretlerimle benzeri akdi ve kanuni bilcümle alacaklarımı tamamen ve eksiksiz bir biçimde almış olduğumu  beyan ve kabul ederek işveren şirketi bütün akdi ve kanuni alacaklarımdan dolayı kayıtsız ve şartsız  gayrikabilirucu ibra eylerim."]
[]
[]
[null,null,"İBRA EDENİN"]
[]
[null,null,"Adı-Soyadı",":"]
[null,null,"TC Kimlik Numarası",":"]
[null,null,"Kanuni İkematgah Adresi",":"]
[null,null,"Tarih",":"]
[null,null,null,null,"İmzası"]

{"sheet":"ÇokluHesap","index":3,"n_rows":12,"n_cols":25,"rows_kept":12,"cut":false,"hidden":false,"merged":[[11,23,21,25]]}
[null,null,null,"ÇOKLU KIDEM VE İHBAR TAZMİNATI HESAPLAMA FORMU-2024"]
[]
[null,null,null,null,null,null,null,null,null,null,"KIDEM TAZMİNATI",null,null,null,"İHBAR TAZMİNATI",null,null,null,null,"TOPLAMLAR"]
[null,null,null,"Kişinin Adı","Çalıştığı Şirket","Brüt Ücreti","İhbar Öncesi Kümülatif Vergi Matrahı","İşe Giriş Tarihi","İşten Çıkış Tarihi","Çalıştığı Gün Sayısı","Yıllık Kıdem Tavanı","Brüt Kıdem Tazminatı","Damga Vergisi Kesintisi","Net Kıdem Tazminatı","İhbar Günü Sayısı","Brüt İhbar Tazminatı","Gelir Vergisi Kesintisi","Damga Vergisi Kesintisi","Net  İhbar Tazminatı","NET kıdem ve ihbar toplamı","Kıdem ve İhbarın İşverene Toplam Maliyeti"]
[]
[null,null,null,"TOPLAMLAR",null,null,null,null,null,null,{"$f":"SUM(K7:K500)","v":0},{"$f":"SUM(L7:L500)","v":0},{"$f":"SUM(M7:M500)","v":0},{"$f":"SUM(N7:N500)","v":0},null,{"$f":"SUM(P7:P500)","v":0},0,0,0,0,0,null,null,null,20]
[null,null,null,null,null,null,null,null,null,null,null,null,null,null,null,null,null,null,null,null,null,null,null,null,24]
[]
[]
[]
[]
[null,null,null,null,null,null,null,null,null,null,null,null,null,null,null,null,null,null,null,null,null,null,null,"Bu sayfada aynı anda birden fazla çalışan için kıdem ve ihbar tazminatı hesaplaması yapabilirsiniz"]

{"sheet":"Data","index":4,"n_rows":87,"n_cols":5,"rows_kept":87,"cut":false,"hidden":true,"merged":[]}
[]
[]
[null,null,"2024 Yılı"]
[]
[null,null,"Cari Yıl Gelir Vergisi Tarifesi"]
[null,null,"DİLİMLER","Dilim Tutar","Dilim Oran"]
[null,null,"Birinci Dilim",110000,0.15]
[null,null,"İkinci Dilim",230000,0.2]
[null,null,"Üçüncü Dilim",870000,0.27]
[null,null,"Dördüncü  Dilim",3000000,0.35]
[null,null,"Beşinci  Dilim",{"$f":"D10+0.01","v":3000000.01},0.4]
[null,null,"Damga Vergisi Oranı"]
[null,null,"Güncel Ücret Damga Vergisi Oranı",null,7.5900000000000004E-3]
[]
[null,null,"Kıdem Tazminatı Tavanı"]
[null,null,"Aylar",null,"Tavan Tutarı"]
[null,null,"01",null,35058.583174999992]
[null,null,"02",null,35058.583174999992]
[null,null,"03",null,35058.583174999992]
[null,null,"04",null,35058.583174999992]
[null,null,"05",null,35058.583174999992]
[null,null,"06",null,35058.583174999992]
[null,null,"07",null,35058.583174999992]
[null,null,"08",null,35058.583174999992]
[null,null,"09",null,35058.583174999992]
[null,null,"10",null,35058.583174999992]
[null,null,"11",null,35058.583174999992]
[null,null,"12",null,35058.583174999992]
[]
[]
[null,null,"Tarihler"]
[null,null,"Günler","Aylar","Yıllar"]
[null,null,"01","01",1970]
[null,null,"02","02",1971]
[null,null,"03","03",1972]
[null,null,"04","04",1973]
[null,null,"05","05",1974]
[null,null,"06","06",1975]
[null,null,"07","07",1976]
[null,null,"08","08",1977]
[null,null,"09","09",1978]
[null,null,"10","10",1979]
[null,null,"11","11",1980]
[null,null,"12","12",1981]
[null,null,"13",null,1982]
[null,null,"14",null,1983]
[null,null,"15",null,1984]
[null,null,"16",null,1985]
[null,null,"17",null,1986]
[null,null,"18",null,1987]
[null,null,"19",null,1988]
[null,null,"20",null,1989]
[null,null,"21",null,1990]
[null,null,"22",null,1991]
[null,null,"23",null,1992]
[null,null,"24",null,1993]
[null,null,"25",null,1994]
[null,null,"26",null,1995]
[null,null,"27",null,1996]
[null,null,"28",null,1997]
[null,null,"29",null,1998]
[null,null,"30",null,1999]
[null,null,"31",null,2000]
[null,null,null,null,2001]
[null,null,null,null,2002]
[null,null,null,null,2003]
[null,null,null,null,2004]
[null,null,null,null,2005]
[null,null,null,null,2006]
[null,null,null,null,2007]
[null,null,null,null,2008]
[null,null,null,null,2009]
[null,null,null,null,2010]
[null,null,null,null,2011]
[null,null,null,null,2012]
[null,null,null,null,2013]
[null,null,null,null,2014]
[null,null,null,null,2015]
[null,null,null,null,2016]
[null,null,null,null,2017]
[null,null,null,null,2018]
[null,null,null,null,2019]
[null,null,null,null,2020]
[null,null,null,null,2021]
[null,null,null,null,2022]
[null,null,null,null,2023]
[null,null,null,null,2024]

{"sheet":"Tavan","index":5,"n_rows":22,"n_cols":59,"rows_kept":22,"cut":false,"hidden":true,"merged":[]}
["KIDEM TAZMİNATI TAVANI"]
[null,"Son Güncelleme",{"$f":"NOW()","v":"2024-01-05T21:30:49.490"}]
[]
["VERİLER","2000-12-15","2000-12-31","2001-05-15","2001-07-15","2001-07-01","2001-09-15","2001-10-15","2001-11-15","2001-12-15","2002-01-01","2002-05-15","2002-07-01","2002-10-01","2003-01-01","2003-07-01","2004-01-01","2004-07-01","2005-01-01","2005-07-01","2006-01-01","2006-07-01","2007-01-01","2007-07-01","2008-01-01","2008-07-01","2009-01-01","2009-07-01","2010-01-01","2010-07-01","2011-01-01","01.01.2011 (YENİ)","2011-07-01","2012-01-01","2012-01-01","2012-01-01","2013-01-01","2013-07-01","2014-01-01","2015-01-01","2015-07-01","2015-09-01","2016-01-01","2016-07-01","2017-01-01","2017-07-01","2018-01-01","2018-07-01","2019-01-01","2019-07-01","2020-01-01","2020-07-01","2021-01-01","2021-07-01","2022-01-01","2022-07-01","2023-01-01","2023-07-01","2024-01-01"]
[null,"2000-12-30","2001-05-14","tarihinden itibaren","tarihinden itibaren","tarihinden itibaren","tarihinden itibaren","tarihinden itibaren","tarihinden itibaren","tarihinden itibaren","tarihinden itibaren","tarihinden itibaren","tarihinden itibaren","tarihinden itibaren","tarihinden itibaren","tarihinden itibaren","tarihinden itibaren","tarihinden itibaren","tarihinden itibaren","tarihinden itibaren","tarihinden itibaren","tarihinden itibaren","tarihinden itibaren","tarihinden itibaren","tarihinden itibaren","tarihinden itibaren","tarihinden itibaren","tarihinden itibaren","tarihinden itibaren","tarihinden itibaren","tarihinden itibaren","tarihinden itibaren","tarihinden itibaren","tarihinden itibaren","tarihinden itibaren","tarihinden itibaren (YENİ)","tarihinden itibaren","tarihinden itibaren","tarihinden itibaren","tarihinden itibaren","tarihinden itibaren","tarihinden itibaren","tarihinden itibaren","tarihinden itibaren","tarihinden itibaren","tarihinden itibaren","tarihinden itibaren","tarihinden itibaren","tarihinden itibaren","tarihinden itibaren","tarihinden itibaren","tarihinden itibaren","tarihinden itibaren","tarihinden itibaren","tarihinden itibaren","tarihinden itibaren","tarihinden itibaren","tarihinden itibaren","tarihinden itibaren"]
["D.M. Gösterge",1500,1500,1500,1500,1500,1500,1500,1500,1500,1500,1500,1500,1500,1500,1500,1500,1500,1500,1500,1500,1500,1500,1500,1500,1500,1500,1500,1500,1500,1500,1500,1500,1500,1500,1500,1500,1500,1500,1500,1500,1500,1500,1500,1500,1500,1500,1500,1500,1500,1500,1500,1500,1500,1500,1500,1500,1500,1500]
["D.M. EK Gösterge",8000,8000,8000,8000,8000,8000,8000,8000,8000,8000,8000,8000,8000,8000,8000,8000,8000,8000,8000,8000,8000,8000,8000,8000,8000,8000,8000,8000,8000,8000,8000,8000,8000,8000,8000,8000,8000,8000,8000,8000,8000,8000,8000,8000,8000,8000,8000,8000,8000,8000,8000,8000,8000,8000,8000,8000,8000,8000]
["GÖSTERGE TOPLAMI (GT)",{"$f":"+B6+B7","v":9500},{"$f":"+C6+C7","v":9500},{"$f":"+D6+D7","v":9500},{"$f":"+E6+E7","v":9500},9500,9500,9500,9500,9500,9500,9500,9500,9500,9500,9500,9500,9500,9500,9500,9500,9500,9500,9500,9500,9500,9500,9500,9500,9500,9500,9500,{"$f":"+AG6+AG7","v":9500},9500,9500,9500,9500,9500,9500,{"$f":"SUM(AN6:AN7)","v":9500},9500,9500,9500,9500,9500,9500,{"$f":"SUM(AU6:AU7)","v":9500},9500,{"$f":"SUM(AW6:AW7)","v":9500},9500,9500,{"$f":"SUM(AZ6:AZ7)","v":9500},9500,{"$f":"SUM(BB6:BB7)","v":9500},9500,{"$f":"SUM(BD6:BD7)","v":9500},9500,{"$f":"SUM(BF6:BF7)","v":9500},9500]
["Memur Aylığı Katsayısı (MAK)",16580,18240,20600,21650,22750,23550,24920,26420,27530,30300,31060,32650,32650,34300,34300,36420,38610,4.0099999999999997E-2,null,4.265E-2,4.4745E-2,4.6984999999999999E-2,4.8349999999999997E-2,4.9318000000000001E-2,5.1448000000000001E-2,5.3504999999999997E-2,5.5919999999999997E-2,5.7383000000000003E-2,5.9444999999999998E-2,6.1823000000000003E-2,6.1954000000000002E-2,6.4460000000000003E-2,6.6186999999999996E-2,6.8834999999999993E-2,7.1589E-2,7.3837E-2,7.6790999999999998E-2,7.6997999999999997E-2,7.9308000000000003E-2,8.3084000000000005E-2,8.3084000000000005E-2,8.8816999999999993E-2,9.3258999999999995E-2,9.6058000000000004E-2,0.10270600000000001,0.10854999999999999,0.11794,0.13059699999999999,0.138459,0.146061,0.15446099999999999,0.16578599999999999,0.17979700000000001,0.23544499999999999,0.33360299999999998,0.43368400000000001,0.50979600000000003,0.76087099999999996]
["Taban Aylığı Katsayısı (TAK)",106900,117600,133300,140250,147750,153000,162150,172150,179650,197700,202800,213300,288300,329250,395250,429250,455050,0.48599999999999999,null,0.53376999999999997,0.55983000000000005,0.59811999999999999,0.62804000000000004,0.65061000000000002,0.68120000000000003,0.70840000000000003,0.74348000000000003,0.76293,0.79310000000000003,0.82482999999999995,0.82655999999999996,0.86251,0.88561999999999996,0.92105000000000004,0.95789999999999997,0.98797999999999997,1.0275000000000001,1.205274,1.2414400000000001,1.30054,1.30054,1.390277,1.4598,1.503595,1.607645,1.6991210000000001,1.8461000000000001,2.044187,2.1672479999999998,2.2862399999999998,2.4176989999999998,2.5949170000000001,2.8141880000000001,3.6851799999999999,5.2215319999999998,6.787992,7.979285,11.909083000000001]
["Taban Aylığı Göstergesi (TAG)",1000,1000,1000,1000,1000,1000,1000,1000,1000,1000,1000,1000,1000,1000,1000,1000,1000,1000,1000,1000,1000,1000,1000,1000,1000,1000,1000,1000,1000,1000,1000,1000,1000,1000,1000,1000,1000,1000,1000,1000,1000,1000,1000,1000,1000,1000,1000,1000,1000,1000,1000,1000,1000,1000,1000,1000,1000,1000]
["Kıdem Aylığı Göstergesi (KAG)",500,500,500,500,500,500,500,500,500,500,500,500,500,500,500,500,500,500,500,500,500,500,500,500,500,500,500,500,500,500,500,500,500,500,500,500,500,500,500,500,500,500,500,500,500,500,500,500,500,500,500,500,500,500,500,500,500,500]
["Özel Hizmet Tazminatı Oranı (ÖHTO)",2,2,2,2,2,2,2,2,2,2,2,3,4,5,5,5,5,5,5,5,5,5,5,5,5,5,5,5,5,5,5,5,5,5,5,6,6,6,6,6,6,6,6,6,6,6,6,6,6,6,6,6,6,6,6,6,6,6]
["KIDEM TAZMİNATI TAVANI",{"$f":"+B8*B9+B11*B10+B12*B9+(B8*B9)*2","v":587720000},{"$f":"+C8*C9+C11*C10+C12*C9+(C8*C9)*2","v":646560000},{"$f":"+D8*D9+D11*D10+D12*D9+(D8*D9)*2","v":730700000},768100000,807500000,835950000,884830000,{"$f":"+I8*I9+I11*I10+I12*I9+(I8*I9)*2","v":938330000},978020000,1076400000,1103540000,1160150000,1235150000,1323950000,1389950000,1485430000,1574740000,1648.9,0,1770.62,1857.4349999999999,1960.6849999999999,2030.19,2080.8320000000003,2173.192,2260.0450000000001,2365.16,2427.0369999999998,2517.0050000000001,{"$f":"+AE8*AE9+AE11*AE10+AE12*AE9+(AE8*AE9)*2","v":2617.6969999999997},2623.2260000000001,2731.8500000000004,2805.0429999999997,2917.2649999999999,3033.9809999999998,{"$f":"+AK8*AK9+AK11*AK10+AK12*AK9+(AK8*AK9)*2","v":3129.2530000000002},{"$f":"+AL8*AL9+AL11*AL10+AL12*AL9+(AL8*AL9)*2","v":3254.4390000000003},{"$f":"+AM8*AM9+AM11*AM10+AM12*AM9+(AM8*AM9)*2","v":3438.2159999999999},{"$f":"+AN8*AN9+AN11*AN10+AN12*AN9+(AN8*AN9)*2","v":3541.3720000000003},{"$f":"+AO8*AO9+AO11*AO10+AO12*AO9+(AO8*AO9)*2","v":3709.9759999999997},{"$f":"+AP8*AP9+AP11*AP10+AP12*AP9+(AP8*AP9)*2.15","v":3828.3706999999995},4092.5342249999999,4297.2050749999999,4426.1596500000005,4732.47505,5001.7547500000001,{"$f":"+AV8*AV9+AV11*AV10+AV12*AV9+(AV8*AV9)*2.15","v":5434.4245000000001},6017.6007249999993,{"$f":"+AX8*AX9+AX11*AX10+AX12*AX9+(AX8*AX9)*2.15","v":6379.8630750000002},{"$f":"+AY8*AY9+AY11*AY10+AY12*AY9+(AY8*AY9)*2.15","v":6730.1459249999989},7117.1749249999993,{"$f":"+BA8*BA9+BA11*BA10+BA12*BA9+(BA8*BA9)*2.15","v":7638.9560499999998},8284.5117250000003,{"$f":"+BC8*BC9+BC11*BC10+BC12*BC9+(BC8*BC9)*2.15","v":10848.594125},15371.403274999999,{"$f":"+BE8*BE9+BE11*BE10+BE12*BE9+(BE8*BE9)*2.15","v":19982.827700000002},23489.828300000001,{"$f":"+BG8*BG9+BG11*BG10+BG12*BG9+(BG8*BG9)*2.15","v":35058.583174999992}]
["FORMÜL: ( GT*MAK)+(TAG*TAK)+(KAG*MAK*)+(GT*MAK*%200)",null,null,null,null,null,null,null,null,null,null,null,null,null,null,null,null,null,null,null,null,null,null,"RG :07.07.2007-26575","RG :28.12.2007-26740 - 5724 s. Merkezi Yönetim Bütçe Kanunu","RG :07.07.2008-26931 -2008/13860 sayılı BKK","RG :31.12.2008-27097 -5828 s. Merkezi Yönetim Bütçe Kanunu","RG :31.12.2008-27097 -5828 s. Merkezi Yönetim Bütçe Kanunu","RG :12.01.2010. 27460  2010/7 Sayılı BKK","RG :09.07.2010. 27636  2010/654 Sayılı BKK","RG :31.12.2010-27802 -6091 s. Merkezi Yönetim Bütçe Kanunu","RG :05.01.2011. 27806  2011/1241 Sayılı BKK","RG :05.07.2011. 27985 (2Mük)  2011/2022 Sayılı BKK","RG :10.01.2012. 28169 -  2012/2663 BKK\n Sayılı BKK","RG :01.06.2012. 28310 -  Kamu Görevlileri Hakem Kurulunun 29/5/2012 Tarihli ve 2012/1 Sayılı Kararı","RG :10.01.2012. 28169 -  2012/2663 BKK\n Sayılı BKK","Bütçe ve Mali Kontr. Gn. Md. 03.01.2013","Bütçe ve Mali Kontr. Gn. Md. 04.07.2013","Bütçe ve Mali Kontr. Gn. Md. 03.01.2014","Bütçe ve Mali Kontr. Gn. Md. 31.12.2014","Bütçe ve Mali Kontr. Gn. Md. 03.07.2015","Bütçe ve Mali Kontr. Gn. Md. 03.07.2015","Bütçe ve Mali Kontr. Gn. Md. 04.01.2016","Maliye 04.07.2016 Tarihli Duyuru","Maliye 03.01.2017 Tarihli Duyuru","Maliye 04.07.2017 Tarihli Duyuru","Maliye 04.01.2018 Tarihli Duyuru","Maliye 04.07.2018 Tarihli Duyuru","Maliye 09.01.2019 Tarihli Duyuru","Maliye 04.07.2019 Tarihli Duyuru","Hazine ve Maliye Bakanlığı Kamu Mali Yönetim ve Dönüşüm GM Genelgesinde","Maliye Bakanlığı Bütçe ve Mali Kontrol GM Genelgesinde","Maliye Bakanlığı Bütçe ve Mali Kontrol GM Genelgesinde","Hazine ve Maliye Bakanlığı Kamu Mali Yönetim ve Dönüşüm GM Genelgesinde","Hazine ve Maliye Bakanlığı Kamu Mali Yönetim ve Dönüşüm GM Genelgesinde","Hazine ve Maliye Bakanlığı Kamu Mali Yönetim ve Dönüşüm GM Genelgesinde","Hazine ve Maliye Bakanlığı Kamu Mali Yönetim ve Dönüşüm GM Genelgesinde","Hazine ve Maliye Bakanlığı Kamu Mali Yönetim ve Dönüşüm GM Genelgesinde","Hazine ve Maliye Bakanlığı Kamu Mali Yönetim ve Dönüşüm GM Genelgesinde"]
[]
["Artış oranı",null,null,null,null,null,null,null,null,null,null,null,null,null,null,null,null,null,null,null,null,null,null,null,null,null,null,null,null,null,null,null,{"$f":"(AG14-AF14)/AF14","v":4.1408555724897607E-2},2.6792466643483094E-2,4.0007229835692437E-2,4.0008706785293724E-2,3.1401646879133521E-2,4.0005074693545119E-2,5.6469640389633841E-2,{"$f":"(AN14-AM14)/AM14","v":3.0002768877813495E-2},4.7609796429180368E-2,3.1912524501506168E-2,6.9001553323976811E-2,5.0010785187752455E-2,3.0008941334967745E-2,{"$f":"(AT14-AS14)/AS14","v":6.9205682628280127E-2},5.6900395069172112E-2,8.6503591564540433E-2,0.10731149636911862,6.0200463034210519E-2,{"$f":"(AY14-AX14)/AX14","v":5.4904446362275365E-2},{"$f":"(AZ14-AY14)/AY14","v":5.7506776868289151E-2},{"$f":"(BA14-AZ14)/AZ14","v":7.3312954999486743E-2},8.4508363547922308E-2,0.30950314093495945,0.41690278923583557,0.30000022395482973,0.17550071754859795,0.49250061461709327]
[]
[null,null,null,null,null,null,null,null,null,null,null,null,null,null,null,null,null,null,null,null,null,null,null,null,null,null,null,null,null,null,null,null,null,null,null,null,null,null,null,null,null,null,null,null,null,null,"NOT:"]
[null,null,null,null,null,null,null,null,null,null,null,null,null,null,null,null,null,null,null,null,null,null,null,null,null,null,null,null,null,null,null,null,null,null,null,null,null,null,null,null,null,null,null,null,null,null,"Maliye 04.01.2018 Tarihli Duyuru"]
[null,null,null,null,null,null,null,null,null,null,null,null,null,null,null,null,null,null,null,null,null,null,null,null,null,null,null,null,null,null,null,null,null,null,null,null,null,null,null,null,null,null,null,null,null,null,"tavan 5001,76 TL"]
[null,null,null,null,null,null,null,null,null,null,null,null,null,null,null,null,null,null,null,null,null,null,null,null,null,null,null,null,null,null,null,null,null,null,null,null,null,null,null,null,null,null,null,null,null,null,"olarak açıklanmıştır."]

{"sheet":"Mevzuat","index":6,"n_rows":106,"n_cols":3,"rows_kept":106,"cut":false,"hidden":true,"merged":[]}
[]
[]
[null,null,"1475 SAYILI İŞ KANUNU"]
[]
[null,null,"MADDE 13 - AKDİN FESHİNDE BİLDİRİM :"]
[]
[null,null,"A) Süresi belirli olmayan sürekli hizmet akitlerinin feshinden önce durumun diğer tarafa bildirilmesi gerekir."]
[]
[null,null,"Hizmet Akdi:"]
[null,null,"a) İşi altı aydan az sürmüş olan işçi için, bildirimin diğer tarafa yapılmasından başlayarak iki hafta sonra,"]
[null,null,"b) İşi altı aydan bir buçuk yıla kadar sürmüş olan işçi için, bildirimin diğer tarafa yapılmasından başlayarak dört hafta sonra,"]
[null,null,"c) İşi bir buçuk yıldan üç yıla kadar sürmüş olan işçi için, bildirimin diğer tarafa yapılmasından başlayarak altı hafta sonra,"]
[null,null,"ç) İşi üç yıldan fazla sürmüş olan işçi için,bildirimin diğer tarafa yapılmasından başlayarak sekiz hafta sonra,"]
[null,null,"feshedilmiş olur."]
[]
[null,null,"B) Öneller asgari olup sözleşme ile arttırılabilir."]
[]
[null,null,"C) Bildirime şartına uymayan taraf yukarıda yazılı önellere ilişkin ücret tutarında tazminat ödemek zorundadır."]
[]
[null,null,"İşveren, işçinin ihbar önellerine ait ücretlerini peşin vermek suretiyle hizmet akdini feshedebilir."]
[]
[null,null,"İşçinin sendikaya üye olması, şikayete başvurması gibi sebeplerle işinden çıkartılması hallerinde ve genel olarak hizmet akdini fesih hakkının kötüye kullanıldığını gösteren diğer durumlarda (A) bendinde yazılı önellere ait ücretlerin üç katı tutarı tazminat olarak ödenir."]
[]
[null,null,"Tarafların ayrıca tazminat isteme hakları saklıdır. "]
[]
[]
[null,null,"MADDE 14 - KIDEM TAZMİNATI"]
[]
[null,null,"(29.7.1983 - 2869 s.k. m.3 ile değişik) Bu Kanun'a tabi işçilerin hizmet akitlerinin :"]
[null,null,"1. İşveren tarafından bu Kanun'un 17 nci maddesinin II numaralı bendinde gösterilen sebepler dışında,"]
[null,null,"2. işçi tarafından bu Kanun'un 16 ncı maddesi uyarınca,"]
[null,null,"3. Muvazzaf askerlik hizmeti dolayısıyla,"]
[null,null,"4. Bağlı bulundukları kanunla kurulu kurum veya sandıklardan yaşlılık, emeklilik veya malullük aylığı yahut toptan ödeme almak amacıyla;"]
[]
[null,null,"Feshedilmesi veya kadının evlendiği tarihten itibaren bir yıl içerisinde kendi arzusu ile sona erdirmesi veya işçinin ölümü sebebiyle son bulması hallerinde işçinin işe başladığı tarihten itibaren hizmet akdinin devamı süresince her geçen tam yıl için işverence işçiye 30 günlük ücreti tutarında kıdem tazminatı ödenir. Bir yıldan artan süreler için de aynı oran üzerinden ödeme yapılır."]
[]
[null,null,"(Değişik fıkralar : 17/10/1980 - 2320/1 md.):"]
[null,null,"İşçilerin kıdemleri, hizmet aktinin devam etmiş veya fasılalarla yeniden aktedilmiş olmasına bakılmaksızın aynı işverenin bir veya değişik işyerlerinde çalıştıkları süreler göz önüne alınarak hesaplanır. İşyerlerinin devir veya intikali yahut herhangi bir suretle bir işverenden başka bir işverene geçmesi veya başka bir yere nakli halinde işçinin kıdemi, işyeri veya işyerlerindeki hizmet akitleri sürelerinin toplamı üzerinden hesaplanır. "]
[]
[null,null,"12.7.1975 tarihinden itibaren (2) işyerinin devri veya herhangi bir suretle el değiştirmesi halinde işlemiş kıdem tazminatlarından her iki işveren sorumludur. Ancak, işyerini devreden işverenlerin bu sorumlulukları işçiyi çalıştırdıkları sürelerle ve devir esnasındaki işçinin aldığı ücret seviyesi ile sınırlıdır. 12.7.1975 tarihinden evvel (3) işyeri devrolmuş veya herhangi bir suretle el değiştirmişse devir mukavelesinde aksine bir hüküm yoksa işlemiş kıdem tazminatlarından yeni işveren sorumludur."]
[]
[null,null,"İşçinin birinci bendin 4 üncü fıkrası hükmünden faydalanabilmesi için aylık veya toptan ödemeye hak kazanmış bulunduğunu ve kendisine aylık bağlanması veya toptan ödeme yapılması için yaşlılık sigortası bakımından bağlı bulunduğu kuruma veya sandığa müracaat etmiş olduğunu belgelemesi şarttır. İşçinin ölümü halinde bu şart aranmaz."]
[]
[null,null,"T.C. Emekli Sandığı Kanunu ve Sosyal Sigortalar Kanunu'na veya yalnız Sosyal Sigortalar Kanunu'na tabi olarak sadece aynı ya da değişik kamu kuruluşlarında geçen hizmet sürelerinin birleştirilmesi suretiyle Sosyal Sigortalar Kanunu'na göre yaşlılık veya malullük aylığına ya da toptan ödemeye hak kazanan işçiye,bu kamu kuruluşlarında geçirdiği hizmet sürelerinin toplamı üzerinden son kamu kuruluşu işverenince kıdem tazminatı ödenir."]
[]
[null,null,"Yukarıda belirtilen kamu kuruluşlarında işçinin hizmet aktinin evvelce bu maddeye göre kıdem tazminatı ödenmesini gerektirmeyecek şekilde sona ermesi suretiyle geçen hizmet süreleri kıdem tazminatının hesabında dikkate alınmaz."]
[]
[null,null,"Ancak, bu tazminatın T.C. Emekli Sandığı'na tabi olarak geçen hizmet süresine ait kısmı için ödenecek miktar, yaşlılık veya malullük aylığının başlangıç tarihinde T.C. Emekli Sandığı Kanunu'nun yürürlükteki hükümlerine göre emeklilik ikramiyesi için öngörülen miktardan fazla olamaz. "]
[]
[null,null,"Bu maddede geçen kamu kuruluşları deyimi, genel, katma ve özel bütçeli idareler ile 468 sayılı kanunun 4 üncü maddesinde sayılan kurumları kapsar.(4)"]
[]
[null,null,"Aynı kıdem süresi için bir defadan fazla kıdem tazminatı veya ikramiye ödenmez."]
[]
[null,null,"Kıdem tazminatının hesaplanması, son ücret üzerinden yapılır. Parça başı, akort, götürü veya yüzde usulü gibi ücretin sabit olmadığı hallerde son bir yıllık süre içinde ödenen ücretin o süre içinde çalışılan günlere bölünmesi suretiyle bulunacak ortalama ücret bu tazminatın hesabına esas tutulur."]
[]
[null,null,"Ancak, son bir yıl içinde işçi ücretine zam yapıldığı takdirde, tazminata esas ücret, işçinin işten ayrılma tarihi ile zammın yapıldığı tarih arasında alınan ücretin aynı süre içinde çalışılan günlere bölünmesi suretiyle hesaplanır."]
[]
[null,null,"(29.7.1983 - 2869/3 md. ile değişik) 13 üncü maddenin (C) bendinde sözü geçen tazminat ile bu maddede yer alan kıdem tazminatına esas olacak ücretin hesabında 26 ancı maddenin birinci fıkrasında yazılı ücrete ilaveten işçiye sağlanmış olan para ve para ile ölçülmesi mümkün akti ve kanundan doğan menfaatler de göz önünde tutulur. Kıdem tazminatının zamanında ödenmemesi sebebiyle açılacak davanın sonunda hakim gecikme süresi için, ödenmeyen süreye göre mevduata uygulanan en yüksek faizin ödenmesine hükmeder. İşçinin mevzuat dan doğan diğer hakları saklıdır."]
[]
[null,null,"(17.10.1980 - 2320/1 md. ile değişik) Bu maddede belirtilen kıdem tazminatı ile ilgili 30 günlük süre hizmet akitleri veya toplu iş sözleşmeleri ile işçi lehine değiştirilebilir."]
[]
[null,null,"(10.12.1982 - 2762/1 md. ile değişik) Ancak, toplu sözleşmelerle ve hizmet akitleriyle belirlenen kıdem tazminatlarının yıllık miktarı, Devlet Memurları Kanunu'na tabi en yüksek devlet memuruna 5434 sayılı T.C. Emekli Sandığı Kanunu hükümlerine göre bir hizmet yılı için ödenecek azami emeklilik ikramiyesini geçemez."]
[]
[null,null,"(17.10.1980 - 2320/1 md. ile değişik fıkralar) : İşçinin ölümü halinde yukarıdaki hükümlere göre doğan tazminat tutarı, kanuni mirasçılarına denir."]
[]
[null,null,"Kıdem tazminatından doğan sorumluluğu işveren şahıslara veya sigorta şirketlerine sigorta ettiremez."]
[]
[null,null,"İşveren sorumluluğu altında ve sadece yaşlılık, emeklilik, malullük, ölüm ve toptan ödeme hallerine mahsus olmak kaydıyla Devlet veya kanunla kurulu kurumlarda veya % 50 hisseden fazlası devlete ait bir bankada veya bir kurumda işveren tarafından kıdem tazminatı ile ilgili bir fon tesis edilir."]
[]
[null,null,"Fon tesisi ile ilgili hususlar kanunla düzenlenir.(1) - Kıdem tazminatı üst sınırları ve uygulama dönemleri için, bu Yasa'nın sonundaki \"Ek : Kıdem Tazminatı (tablolar)\" bölümüne bakınız."]
[]
[]
[]
[null,null,"Ali Tezel (31.08.2015)"]
[null,null,"475 sayılı mülga İş Kanunu’nun yürürlükteki tek maddesi olarak kıdem tazminatını düzenleyen 14’üncü maddede; “Toplu sözleşmelerle ve hizmet akitleriyle belirlenen kıdem tazminatlarının yıllık miktarı, Devlet Memurları Kanunu’na tabi en yüksek devlet memuruna 5434 sayılı T.C. Emekli Sandığı Kanunu hükümlerine göre bir hizmet yılı için ödenecek azami emeklilik ikramiyesini geçemez” hükmünü amir bulunuyor. İşte bu sınıra kıdem tazminatı tavanı deniyor. Kıdem tazminatı tavanı aynı zamanda bir emekli ikramiyesi hesabı demek oluyor. Memurun emekli ikramiyesi aynı zamanda o memurun “Emekli Sandığı matrahı” demek oluyor."]
[]
[null,null,"Bu kavram önemli bir unsur olarak öne çıkıyor. Zira memurun emekli ikramiyesi de emekli maaşı da, görevdeki memurun ve kurumunun ödeyeceği kesenek ve karşılıklar da o memurun Emekli Sandığı matrahına göre hesaplanır ve ödenir."]
[]
[]
[]
[null,null,"KAMUDA EK GÖSTERGE 1500"]
[]
[null,null,"Emekli Sandığı matrahı; “gösterge aylığı”, “ek gösterge aylığı”, “kıdem aylığı”, “ek göstergeye göre tazminat” ve “taban aylığından” oluşur. Bu unsurlar da kıdem, derece ve kademe ile unvana göre belirlenen ek göstergeye göre saptanır.    "]
[]
[null,null,"Ek göstergeye göre ödenen tazminat en yüksek devlet memuru aylığının gösterge ile ek gösterge toplamına göre hesaplanır ve tutarı itibariyle Emekli Sandığı matrahındaki en önemli iki kalemden biridir."]
[]
[null,null,"Kamuda 1’inci derecenin 4’üncü kademesi için uygulanan en yüksek gösterge 1500’dür. En yüksek ek gösterge ise Genelkurmay başkanı için 9000, kuvvet komutanları ve jandarma genel komutanı için 8400’dür. Ama bu kişiler 657 sayılı Devlet Memurları Kanunu’na tabi değildirler."]
[]
[null,null,"YÜZDE 215'E ÇIKARILDI"]
[]
[null,null,"Kıdem tazminatına ilişkin 1475 sayılı Yasada “En yüksek devlet memuruna ödenecek azami emekli ikramiyesi” kavramı kullanıldığı için kıdem tazminatı tavan hesabında da 657 sayılı Devlet Memurları Kanunu’na tabi memurlar arasında en yüksek devlet memuru olan Başbakanlık Müsteşarına uygulanan 8000 ek gösterge esas alınır."]
[]
[null,null,"Emekli Sandığı matrahı içindeki “Ek göstergeye göre tazminat” 5434 sayılı Türkiye Cumhuriyeti Emekli Sandığı Kanunu’nun mülga ek 70’inci maddesine göre hesaplanır.  Buna göre “Ek göstergesi 7600 (dahil) - 8400 (hariç) arasında olanlarda yüzde 200’üne” ibaresindeki yüzde 200 rakamı uygulanması gerekiyor iken 1 Eylül 2015 tarihinden geçerli olarak bu rakam yüzde 215 olarak değiştirilmiş bulunuyor."]
[]
[null,null,"2015/8047 sayılı BKK ile yapılan bu değişiklik dolayısıyla kıdem tazminatı tavanını da değiştirmiş oluyor ve yeni hesapla;"]
[]
[null,null,"Kıdem tazminat tavanının da 1 Eylül 2015 tarihinden itibaren 3 bin 709 lira değil, 3 bin 828 lira olarak uygulanması gerekliliği ortaya çıkıyor."]
[]
[null,null,"*****"]
[]
[null,null,"10 YILI DOLDURUNCA KIDEM TAZMİNATLI OLARAK AYRILABİLİR MİYİM?"]
[]
[null,null,"Ali Bey, 2006 Kasım ayından beri aynı iş yerinde çalışıyorum. Aynı iş yerinde 10 yılımı doldurursam kıdem tazminatımı alıp ayrılabilir miyim? 15 yıl olmak zorunda mı? (Nurcan Telek)"]
[]
[]
[null,null,"Sayın Telek, 4857 sayılı İş Kanunu’na göre çalışanların kıdem tazminatı hakkı aynı iş yerinde bir yıllık kıdemin dolmasıyla başlar. İşten ayrılış şeklinize göre tazminat hakkıyla veya tazminatsız olarak ayrılırsınız. Aynı iş yerinde ne 10 ne de 15 yıl çalışma şartı yoktur. 15 yıl ve 3 bin 600 günle işten tazminatlı ayrılmada sözü edilen 15 yıl ilk defa sigortalılık başlangıcından itibaren geçmesi gereken süredir. Eğer 08.09.1999’dan önce bir gün bile bir sigortalılığınız varsa 15 yıl ve 3 bin 600 gün şartlarını sağlamış olacağınızdan “Yaş şartının dolmasını çalışmadan bekleme” gerekçesiyle işten tazminatlı olarak ayrılabilirsiniz.  "]